[Event "Titled Tuesday Blitz May 24 Early 2022"]
[White "Cherniaiev, Tykhon"]
[Black "Yuan, Qingyu"]
[WhiteFideId "14182360"]
[BlackFideId "8609772"]
[WhiteElo "2289"]
[BlackElo "2359"]
[Result "0-1"]
[Round "11"]
[TimeControl "180+1"]
[Date "2022.05.24"]
[WhiteClock "0:00:07"]
[BlackClock "0:00:08"]

1. Nf3 {[%clk 0:03:00]}  d5 {[%clk 0:03:00]} 2. c4 {[%clk 0:03:01]}  e6 {[%clk 0:03:00]} 3. d4 {[%clk 0:03:01]}  Nf6 {[%clk 0:03:00]} 4. g3 {[%clk 0:03:01]}  dxc4 {[%clk 0:03:00]} 5. Bg2 {[%clk 0:03:01]}  c5 {[%clk 0:03:00]} 6. O-O {[%clk 0:03:00]}  Nc6 {[%clk 0:03:01]} 7. dxc5 {[%clk 0:03:00]}  Qxd1 {[%clk 0:03:02]} 8. Rxd1 {[%clk 0:03:00]}  Bxc5 {[%clk 0:03:02]} 9. Nbd2 {[%clk 0:02:58]}  c3 {[%clk 0:03:03]} 10. bxc3 {[%clk 0:02:57]}  O-O {[%clk 0:03:03]} 11. Nb3 {[%clk 0:02:57]}  Be7 {[%clk 0:03:03]} 12. Nfd4 {[%clk 0:02:55]}  Nxd4 {[%clk 0:03:04]} 13. cxd4 {[%clk 0:02:55]}  Nd5 {[%clk 0:03:04]} 14. Bb2 {[%clk 0:02:50]}  f5 {[%clk 0:03:04]} 15. e4 {[%clk 0:02:48]}  fxe4 {[%clk 0:03:01]} 16. Bxe4 {[%clk 0:02:49]}  b6 {[%clk 0:03:00]} 17. Re1 {[%clk 0:02:46]}  Bb7 {[%clk 0:02:56]} 18. a4 {[%clk 0:02:44]}  a5 {[%clk 0:02:50]} 19. Ba3 {[%clk 0:02:36]}  Bb4 {[%clk 0:02:44]} 20. Bxb4 {[%clk 0:02:34]}  axb4 {[%clk 0:02:45]} 21. a5 {[%clk 0:02:29]}  bxa5 {[%clk 0:02:26]} 22. Nxa5 {[%clk 0:02:28]}  Ra7 {[%clk 0:02:16]} 23. Nxb7 {[%clk 0:02:16]}  Rxb7 {[%clk 0:02:17]} 24. Rab1 {[%clk 0:02:11]}  Rc8 {[%clk 0:01:34]} 25. Bf3 {[%clk 0:01:46]}  Kf7 {[%clk 0:01:08]} 26. Rxe6 {[%clk 0:01:36]}  Kxe6 {[%clk 0:01:08]} 27. Bg4+ {[%clk 0:01:36]}  Kd6 {[%clk 0:01:09]} 28. Bxc8 {[%clk 0:01:36]}  Rb8 {[%clk 0:01:07]} 29. Bf5 {[%clk 0:01:26]}  Nc3 {[%clk 0:00:52]} 30. Rb3 {[%clk 0:01:04]}  Ne2+ {[%clk 0:00:49]} 31. Kg2 {[%clk 0:01:04]}  Nxd4 {[%clk 0:00:49]} 32. Rd3 {[%clk 0:01:04]}  Kc5 {[%clk 0:00:42]} 33. Bxh7 {[%clk 0:01:04]}  b3 {[%clk 0:00:41]} 34. Rc3+ {[%clk 0:00:42]}  Kb4 {[%clk 0:00:41]} 35. Rc7 {[%clk 0:00:41]}  Ne6 {[%clk 0:00:20]} 36. Re7 {[%clk 0:00:36]}  Rb6 {[%clk 0:00:20]} 37. Bf5 {[%clk 0:00:26]}  b2 {[%clk 0:00:20]} 38. h4 {[%clk 0:00:21]}  Nd4 {[%clk 0:00:20]} 39. Bb1 {[%clk 0:00:21]}  g6 {[%clk 0:00:19]} 40. Re3 {[%clk 0:00:14]}  Nb5 {[%clk 0:00:18]} 41. Bc2 {[%clk 0:00:08]}  Nc3 {[%clk 0:00:14]} 42. Rd3 {[%clk 0:00:06]}  Kc4 {[%clk 0:00:09]} 43. Rf3 {[%clk 0:00:06]}  Rd6 {[%clk 0:00:08]} 44. Rf4+ {[%clk 0:00:05]}  Kc5 {[%clk 0:00:08]} 45. Rf3 {[%clk 0:00:05]}  Kb4 {[%clk 0:00:08]} 46. Rf4+ {[%clk 0:00:06]}  Kc5 {[%clk 0:00:07]} 47. Rf3 {[%clk 0:00:06]}  Kc4 {[%clk 0:00:06]} 48. Rf4+ {[%clk 0:00:06]}  Rd4 {[%clk 0:00:06]} 49. Bxg6 {[%clk 0:00:02]}  Rxf4 {[%clk 0:00:03]} 50. gxf4 {[%clk 0:00:03]}  Kd4 {[%clk 0:00:03]} 51. h5 {[%clk 0:00:04]}  Ne4 {[%clk 0:00:03]} 52. h6 {[%clk 0:00:04]}  b1=Q {[%clk 0:00:03]} 53. h7 {[%clk 0:00:05]}  Qb8 {[%clk 0:00:04]} 54. Kf3 {[%clk 0:00:05]}  Nf6 {[%clk 0:00:04]} 55. Kg3 {[%clk 0:00:06]}  Qh8 {[%clk 0:00:04]} 56. Kh4 {[%clk 0:00:06]}  Nxh7 {[%clk 0:00:05]} 57. Kg4 {[%clk 0:00:06]}  Nf8 {[%clk 0:00:06]} 58. f5 {[%clk 0:00:05]}  Qf6 {[%clk 0:00:06]} 59. f4 {[%clk 0:00:06]}  Ke4 {[%clk 0:00:07]} 60. Kh5 {[%clk 0:00:06]}  Nxg6 {[%clk 0:00:05]} 61. fxg6 {[%clk 0:00:06]}  Kf5 {[%clk 0:00:06]} 62. g7 {[%clk 0:00:06]}  Qg6+ {[%clk 0:00:07]} 63. Kh4 {[%clk 0:00:07]}  Qg4# {[%clk 0:00:08]} 0-1


[Site "https://www.chess.com"]

[Event "Titled Tuesday Blitz May 24 Early 2022"]
[White "Chernomordik, Pavel"]
[Black "Hoffmann, Asa"]
[WhiteFideId "2804530"]
[BlackFideId "2001470"]
[WhiteElo "2220"]
[BlackElo "2117"]
[Result "1/2-1/2"]
[Round "11"]
[TimeControl "180+1"]
[Date "2022.05.25"]
[WhiteClock "0:00:07"]
[BlackClock "0:00:06"]

1. e4 {[%clk 0:03:00]}  d6 {[%clk 0:02:58]} 2. d4 {[%clk 0:03:00]}  Nf6 {[%clk 0:02:57]} 3. Nc3 {[%clk 0:02:59]}  c6 {[%clk 0:02:55]} 4. Bg5 {[%clk 0:02:52]}  Nbd7 {[%clk 0:02:53]} 5. Qd2 {[%clk 0:02:51]}  b5 {[%clk 0:02:52]} 6. Bd3 {[%clk 0:02:50]}  e5 {[%clk 0:02:51]} 7. dxe5 {[%clk 0:02:46]}  dxe5 {[%clk 0:02:50]} 8. O-O-O {[%clk 0:02:46]}  Qc7 {[%clk 0:02:49]} 9. Kb1 {[%clk 0:02:45]}  Bc5 {[%clk 0:02:46]} 10. f4 {[%clk 0:02:38]}  h6 {[%clk 0:02:42]} 11. Bxf6 {[%clk 0:02:35]}  gxf6 {[%clk 0:02:40]} 12. Nge2 {[%clk 0:02:27]}  a6 {[%clk 0:02:19]} 13. Rhf1 {[%clk 0:02:23]}  Bb7 {[%clk 0:02:18]} 14. Ng3 {[%clk 0:02:09]}  O-O-O {[%clk 0:02:16]} 15. Nh5 {[%clk 0:01:59]}  Qb6 {[%clk 0:02:03]} 16. Qe2 {[%clk 0:01:56]}  Bd4 {[%clk 0:02:00]} 17. Qg4 {[%clk 0:01:44]}  Kb8 {[%clk 0:01:51]} 18. Ne2 {[%clk 0:01:42]}  Rhg8 {[%clk 0:01:46]} 19. Qh3 {[%clk 0:01:39]}  c5 {[%clk 0:01:39]} 20. c3 {[%clk 0:01:30]}  c4 {[%clk 0:01:30]} 21. Bc2 {[%clk 0:01:24]}  Bc8 {[%clk 0:01:05]} 22. cxd4 {[%clk 0:01:15]}  exd4 {[%clk 0:01:05]} 23. Nxd4 {[%clk 0:01:06]}  Nc5 {[%clk 0:01:04]} 24. Qe3 {[%clk 0:01:00]}  Rxg2 {[%clk 0:00:57]} 25. Nc6+ {[%clk 0:00:54]}  Qxc6 {[%clk 0:00:56]} 26. Rxd8 {[%clk 0:00:53]}  b4 {[%clk 0:00:46]} 27. Nxf6 {[%clk 0:00:48]}  b3 {[%clk 0:00:39]} 28. axb3 {[%clk 0:00:36]}  cxb3 {[%clk 0:00:39]} 29. Qxc5 {[%clk 0:00:22]}  bxc2+ {[%clk 0:00:36]} 30. Kc1 {[%clk 0:00:19]}  Qxc5 {[%clk 0:00:30]} 31. Nd7+ {[%clk 0:00:19]}  Kc7 {[%clk 0:00:29]} 32. Nxc5 {[%clk 0:00:20]}  Kxd8 {[%clk 0:00:28]} 33. Nd3 {[%clk 0:00:18]}  Rxh2 {[%clk 0:00:25]} 34. Nf2 {[%clk 0:00:17]}  a5 {[%clk 0:00:23]} 35. Kxc2 {[%clk 0:00:17]}  Ba6 {[%clk 0:00:23]} 36. Rd1+ {[%clk 0:00:16]}  Ke7 {[%clk 0:00:22]} 37. Rd2 {[%clk 0:00:17]}  h5 {[%clk 0:00:21]} 38. e5 {[%clk 0:00:13]}  h4 {[%clk 0:00:21]} 39. Ne4 {[%clk 0:00:12]}  Rxd2+ {[%clk 0:00:20]} 40. Kxd2 {[%clk 0:00:12]}  h3 {[%clk 0:00:18]} 41. Ng3 {[%clk 0:00:11]}  h2 {[%clk 0:00:17]} 42. Ke3 {[%clk 0:00:10]}  Bb7 {[%clk 0:00:17]} 43. f5 {[%clk 0:00:10]}  h1=Q {[%clk 0:00:16]} 44. Nxh1 {[%clk 0:00:10]}  Bxh1 {[%clk 0:00:15]} 45. Kd4 {[%clk 0:00:11]}  Kd7 {[%clk 0:00:14]} 46. Kc5 {[%clk 0:00:10]}  Be4 {[%clk 0:00:11]} 47. e6+ {[%clk 0:00:10]}  fxe6 {[%clk 0:00:11]} 48. fxe6+ {[%clk 0:00:09]}  Kxe6 {[%clk 0:00:09]} 49. Kb5 {[%clk 0:00:10]}  Bd5 {[%clk 0:00:09]} 50. Kxa5 {[%clk 0:00:09]}  Kd6 {[%clk 0:00:09]} 51. Kb6 {[%clk 0:00:07]}  Bb3 {[%clk 0:00:08]} 52. Kb5 {[%clk 0:00:07]}  Bd1 {[%clk 0:00:07]} 53. Kb4 {[%clk 0:00:07]}  Kc6 {[%clk 0:00:07]} 54. Kc3 {[%clk 0:00:07]}  Kb5 {[%clk 0:00:07]} 55. b4 {[%clk 0:00:07]}  Ba4 {[%clk 0:00:06]} 56. Kd4 {[%clk 0:00:07]}  Kxb4 {[%clk 0:00:06]} 1/2-1/2


[Site "https://www.chess.com"]

[Event "Titled Tuesday Blitz May 24 Early 2022"]
[White "Ciuffoletti, Paolo"]
[Black "Sailer, Mike"]
[WhiteFideId "807630"]
[BlackFideId "2012901"]
[WhiteElo "2143"]
[BlackElo "2109"]
[Result "1-0"]
[Round "11"]
[TimeControl "180+1"]
[Date "2022.05.25"]
[WhiteClock "0:00:32"]
[BlackClock "0:00:50"]

1. e4 {[%clk 0:03:00]}  d5 {[%clk 0:02:59]} 2. exd5 {[%clk 0:03:00]}  Qxd5 {[%clk 0:02:59]} 3. Nc3 {[%clk 0:03:00]}  Qd6 {[%clk 0:03:00]} 4. d4 {[%clk 0:03:00]}  Nf6 {[%clk 0:03:00]} 5. Nf3 {[%clk 0:03:00]}  c6 {[%clk 0:03:00]} 6. Bd3 {[%clk 0:02:55]}  Bg4 {[%clk 0:03:00]} 7. h3 {[%clk 0:02:55]}  Bh5 {[%clk 0:02:57]} 8. g4 {[%clk 0:02:49]}  Bg6 {[%clk 0:02:50]} 9. Be3 {[%clk 0:02:36]}  Bxd3 {[%clk 0:02:43]} 10. Qxd3 {[%clk 0:02:35]}  e6 {[%clk 0:02:43]} 11. Ne5 {[%clk 0:02:28]}  Nbd7 {[%clk 0:02:41]} 12. f4 {[%clk 0:02:27]}  Nb6 {[%clk 0:02:36]} 13. O-O-O {[%clk 0:02:23]}  Nbd5 {[%clk 0:02:35]} 14. Nxd5 {[%clk 0:02:01]}  Nxd5 {[%clk 0:02:30]} 15. Bd2 {[%clk 0:01:56]}  f6 {[%clk 0:02:19]} 16. Nc4 {[%clk 0:01:51]}  Qc7 {[%clk 0:02:19]} 17. f5 {[%clk 0:01:49]}  exf5 {[%clk 0:02:12]} 18. Rde1+ {[%clk 0:01:38]}  Be7 {[%clk 0:02:11]} 19. gxf5 {[%clk 0:01:31]}  O-O-O {[%clk 0:02:08]} 20. Kb1 {[%clk 0:01:26]}  Rhe8 {[%clk 0:02:02]} 21. Rhg1 {[%clk 0:01:23]}  Bf8 {[%clk 0:02:01]} 22. Re6 {[%clk 0:01:20]}  Rxe6 {[%clk 0:01:55]} 23. fxe6 {[%clk 0:01:20]}  Re8 {[%clk 0:01:52]} 24. Qxh7 {[%clk 0:01:14]}  Rxe6 {[%clk 0:01:50]} 25. Qg8 {[%clk 0:01:12]}  Re8 {[%clk 0:01:49]} 26. Re1 {[%clk 0:01:07]}  Rxe1+ {[%clk 0:01:46]} 27. Bxe1 {[%clk 0:01:07]}  Qe7 {[%clk 0:01:46]} 28. Bd2 {[%clk 0:01:03]}  b5 {[%clk 0:01:46]} 29. Na5 {[%clk 0:00:58]}  Kc7 {[%clk 0:01:43]} 30. a3 {[%clk 0:00:57]}  Nb6 {[%clk 0:01:26]} 31. Nb3 {[%clk 0:00:54]}  Nc4 {[%clk 0:01:25]} 32. Bb4 {[%clk 0:00:51]}  c5 {[%clk 0:01:04]} 33. Bxc5 {[%clk 0:00:43]}  Nd2+ {[%clk 0:01:04]} 34. Nxd2 {[%clk 0:00:38]}  Qe1+ {[%clk 0:01:03]} 35. Ka2 {[%clk 0:00:39]}  Bxc5 {[%clk 0:01:03]} 36. dxc5 {[%clk 0:00:35]}  Qxd2 {[%clk 0:01:03]} 37. Qxg7+ {[%clk 0:00:35]}  Kc6 {[%clk 0:01:03]} 38. Qxf6+ {[%clk 0:00:36]}  Kxc5 {[%clk 0:01:03]} 39. Qc3+ {[%clk 0:00:35]}  Qxc3 {[%clk 0:01:03]} 40. bxc3 {[%clk 0:00:36]}  a5 {[%clk 0:00:57]} 41. h4 {[%clk 0:00:34]}  Kd5 {[%clk 0:00:55]} 42. h5 {[%clk 0:00:33]}  Ke6 {[%clk 0:00:54]} 43. a4 {[%clk 0:00:33]}  bxa4 {[%clk 0:00:50]} 44. c4 {[%clk 0:00:32]} 1-0


[Site "https://www.chess.com"]

[Event "Titled Tuesday Blitz May 24 Early 2022"]
[White "Demchenko, Anton"]
[Black "Petrovskyi, Vadym"]
[WhiteFideId "4160258"]
[BlackFideId "14165210"]
[WhiteElo "2539"]
[BlackElo "2400"]
[Result "1/2-1/2"]
[Round "11"]
[TimeControl "180+1"]
[Date "2022.05.24"]
[WhiteClock "0:00:02"]
[BlackClock "0:00:27"]

1. e4 {[%clk 0:03:00]}  c5 {[%clk 0:03:00]} 2. Nf3 {[%clk 0:03:01]}  d6 {[%clk 0:03:00]} 3. d4 {[%clk 0:03:01]}  cxd4 {[%clk 0:02:59]} 4. Qxd4 {[%clk 0:03:02]}  Nc6 {[%clk 0:02:59]} 5. Bb5 {[%clk 0:03:03]}  Bd7 {[%clk 0:03:00]} 6. Bxc6 {[%clk 0:03:03]}  Bxc6 {[%clk 0:03:01]} 7. Nc3 {[%clk 0:03:04]}  Nf6 {[%clk 0:03:01]} 8. Bg5 {[%clk 0:03:05]}  e6 {[%clk 0:03:02]} 9. O-O-O {[%clk 0:03:05]}  Be7 {[%clk 0:03:02]} 10. Qd3 {[%clk 0:03:06]}  Qa5 {[%clk 0:03:02]} 11. Bd2 {[%clk 0:03:05]}  Qc7 {[%clk 0:02:35]} 12. Nd4 {[%clk 0:03:04]}  O-O {[%clk 0:02:35]} 13. f4 {[%clk 0:03:01]}  Rfd8 {[%clk 0:02:33]} 14. Rhe1 {[%clk 0:02:30]}  d5 {[%clk 0:02:11]} 15. e5 {[%clk 0:02:29]}  Nd7 {[%clk 0:01:58]} 16. Qg3 {[%clk 0:02:24]}  Bc5 {[%clk 0:01:50]} 17. Nce2 {[%clk 0:02:17]}  Bxd4 {[%clk 0:01:47]} 18. Nxd4 {[%clk 0:02:17]}  Nc5 {[%clk 0:01:47]} 19. f5 {[%clk 0:01:55]}  Ne4 {[%clk 0:01:33]} 20. Qf4 {[%clk 0:01:37]}  exf5 {[%clk 0:01:13]} 21. Nxf5 {[%clk 0:01:34]}  Rac8 {[%clk 0:01:05]} 22. Qg4 {[%clk 0:00:26]}  g6 {[%clk 0:00:54]} 23. Nh6+ {[%clk 0:00:24]}  Kg7 {[%clk 0:00:48]} 24. Rxe4 {[%clk 0:00:22]}  dxe4 {[%clk 0:00:46]} 25. Qg5 {[%clk 0:00:19]}  Rxd2 {[%clk 0:00:40]} 26. Rxd2 {[%clk 0:00:16]}  Bd7 {[%clk 0:00:41]} 27. Rf2 {[%clk 0:00:09]}  Be6 {[%clk 0:00:39]} 28. Nxf7 {[%clk 0:00:02]}  Bxf7 {[%clk 0:00:38]} 29. Qf6+ {[%clk 0:00:02]}  Kh6 {[%clk 0:00:33]} 30. Qf4+ {[%clk 0:00:01]}  Kg7 {[%clk 0:00:27]} 31. Qf6+ {[%clk 0:00:02]}  Kh6 {[%clk 0:00:27]} 32. Qh4+ {[%clk 0:00:01]}  Kg7 {[%clk 0:00:27]} 33. Qf6+ {[%clk 0:00:02]} 1/2-1/2


[Site "https://www.chess.com"]

[Event "Titled Tuesday Blitz May 24 Early 2022"]
[White "Derraugh, Geordie"]
[Black "Dimitrov, Atanas"]
[WhiteFideId "2603950"]
[BlackFideId "2901315"]
[WhiteElo "2116"]
[BlackElo "2661"]
[Result "0-1"]
[Round "11"]
[TimeControl "180+1"]
[Date "2022.05.25"]
[WhiteClock "0:00:02"]
[BlackClock "0:00:11"]

1. e4 {[%clk 0:03:00]}  c5 {[%clk 0:03:00]} 2. Nf3 {[%clk 0:03:00]}  d6 {[%clk 0:03:00]} 3. Bb5+ {[%clk 0:03:00]}  Bd7 {[%clk 0:03:00]} 4. Bxd7+ {[%clk 0:03:00]}  Nxd7 {[%clk 0:03:01]} 5. O-O {[%clk 0:03:00]}  Ngf6 {[%clk 0:03:02]} 6. Qe2 {[%clk 0:03:00]}  e6 {[%clk 0:03:02]} 7. c4 {[%clk 0:02:57]}  Be7 {[%clk 0:03:02]} 8. d4 {[%clk 0:02:55]}  cxd4 {[%clk 0:03:02]} 9. Nxd4 {[%clk 0:02:56]}  Rc8 {[%clk 0:03:02]} 10. Nc3 {[%clk 0:02:55]}  O-O {[%clk 0:03:02]} 11. b3 {[%clk 0:02:52]}  a6 {[%clk 0:03:02]} 12. Bb2 {[%clk 0:02:52]}  Qa5 {[%clk 0:03:01]} 13. a3 {[%clk 0:02:46]}  b5 {[%clk 0:02:50]} 14. b4 {[%clk 0:02:43]}  Qb6 {[%clk 0:02:49]} 15. cxb5 {[%clk 0:02:37]}  Ne5 {[%clk 0:02:36]} 16. Na4 {[%clk 0:02:15]}  Qa7 {[%clk 0:02:05]} 17. bxa6 {[%clk 0:01:50]}  Nc4 {[%clk 0:02:04]} 18. b5 {[%clk 0:01:41]}  Nxb2 {[%clk 0:01:52]} 19. Qxb2 {[%clk 0:01:42]}  Nxe4 {[%clk 0:01:53]} 20. Nc6 {[%clk 0:01:38]}  Rxc6 {[%clk 0:01:48]} 21. bxc6 {[%clk 0:01:38]}  Qxa6 {[%clk 0:01:49]} 22. Qc2 {[%clk 0:00:48]}  d5 {[%clk 0:01:41]} 23. Rab1 {[%clk 0:00:44]}  Bd6 {[%clk 0:01:23]} 24. Rb6 {[%clk 0:00:30]}  Qa7 {[%clk 0:01:15]} 25. Rb7 {[%clk 0:00:29]}  Qa5 {[%clk 0:01:14]} 26. Rfb1 {[%clk 0:00:19]}  g6 {[%clk 0:01:10]} 27. c7 {[%clk 0:00:16]}  Kg7 {[%clk 0:00:08]} 28. c8=Q {[%clk 0:00:11]}  Rxc8 {[%clk 0:00:08]} 29. Qxc8 {[%clk 0:00:11]}  Qd2 {[%clk 0:00:07]} 30. Rf1 {[%clk 0:00:09]}  Qf4 {[%clk 0:00:05]} 31. g3 {[%clk 0:00:07]}  Qf3 {[%clk 0:00:04]} 32. Qxe6 {[%clk 0:00:07]}  Ng5 {[%clk 0:00:04]} 33. Qd7 {[%clk 0:00:06]}  Be5 {[%clk 0:00:03]} 34. h4 {[%clk 0:00:05]}  Ne4 {[%clk 0:00:03]} 35. Qh3 {[%clk 0:00:03]}  Bd4 {[%clk 0:00:02]} 36. Qg2 {[%clk 0:00:03]}  Bxf2+ {[%clk 0:00:02]} 37. Kh1 {[%clk 0:00:03]}  Nxg3+ {[%clk 0:00:02]} 38. Kh2 {[%clk 0:00:03]}  Nxf1+ {[%clk 0:00:03]} 39. Qxf1 {[%clk 0:00:04]}  Qf4+ {[%clk 0:00:03]} 40. Kg2 {[%clk 0:00:04]}  Qg3+ {[%clk 0:00:04]} 41. Kh1 {[%clk 0:00:05]}  Qxh4+ {[%clk 0:00:05]} 42. Kg2 {[%clk 0:00:06]}  Qg3+ {[%clk 0:00:05]} 43. Kh1 {[%clk 0:00:06]}  Be3 {[%clk 0:00:06]} 44. Qg2 {[%clk 0:00:07]}  Qe1+ {[%clk 0:00:05]} 45. Kh2 {[%clk 0:00:06]}  Bf4+ {[%clk 0:00:06]} 46. Kh3 {[%clk 0:00:07]}  Qe6+ {[%clk 0:00:04]} 47. Qg4 {[%clk 0:00:06]}  Qe3+ {[%clk 0:00:05]} 48. Kg2 {[%clk 0:00:07]}  Qe4+ {[%clk 0:00:05]} 49. Qf3 {[%clk 0:00:07]}  Qc2+ {[%clk 0:00:04]} 50. Kh3 {[%clk 0:00:07]}  Qxa4 {[%clk 0:00:05]} 51. Qxd5 {[%clk 0:00:07]}  Qxa3+ {[%clk 0:00:05]} 52. Kg2 {[%clk 0:00:06]}  Qg3+ {[%clk 0:00:06]} 53. Kf1 {[%clk 0:00:06]}  Qh3+ {[%clk 0:00:06]} 54. Ke2 {[%clk 0:00:07]}  Qg4+ {[%clk 0:00:04]} 55. Kf1 {[%clk 0:00:06]}  Qf5 {[%clk 0:00:04]} 56. Qxf5 {[%clk 0:00:04]}  gxf5 {[%clk 0:00:05]} 57. Rb4 {[%clk 0:00:03]}  Bg5 {[%clk 0:00:05]} 58. Kg2 {[%clk 0:00:03]}  Kg6 {[%clk 0:00:06]} 59. Kf3 {[%clk 0:00:04]}  f4 {[%clk 0:00:06]} 60. Rb6+ {[%clk 0:00:04]}  f6 {[%clk 0:00:06]} 61. Rb8 {[%clk 0:00:04]}  h5 {[%clk 0:00:07]} 62. Rg8+ {[%clk 0:00:04]}  Kf5 {[%clk 0:00:07]} 63. Rh8 {[%clk 0:00:05]}  h4 {[%clk 0:00:07]} 64. Rh7 {[%clk 0:00:05]}  Ke5 {[%clk 0:00:07]} 65. Re7+ {[%clk 0:00:05]}  Kd4 {[%clk 0:00:07]} 66. Rd7+ {[%clk 0:00:05]}  Ke5 {[%clk 0:00:06]} 67. Re7+ {[%clk 0:00:05]}  Kd6 {[%clk 0:00:07]} 68. Re1 {[%clk 0:00:05]}  Kd5 {[%clk 0:00:07]} 69. Re8 {[%clk 0:00:05]}  Kd4 {[%clk 0:00:07]} 70. Re4+ {[%clk 0:00:04]}  Kc3 {[%clk 0:00:08]} 71. Re6 {[%clk 0:00:02]}  Kd2 {[%clk 0:00:08]} 72. Rxf6 {[%clk 0:00:02]}  Bxf6 {[%clk 0:00:08]} 73. Kxf4 {[%clk 0:00:02]}  Ke2 {[%clk 0:00:09]} 74. Kg4 {[%clk 0:00:02]}  Kf2 {[%clk 0:00:09]} 75. Kh3 {[%clk 0:00:02]}  Kg1 {[%clk 0:00:10]} 76. Kg4 {[%clk 0:00:02]}  Kg2 {[%clk 0:00:10]} 77. Kf5 {[%clk 0:00:02]}  h3 {[%clk 0:00:11]} 0-1


[Site "https://www.chess.com"]

[Event "Titled Tuesday Blitz May 24 Early 2022"]
[White "Dmitrenko, Viktor"]
[Black "Molina, Roberto Junio Brito"]
[WhiteFideId "14110270"]
[BlackFideId "2109450"]
[WhiteElo "2218"]
[BlackElo "2432"]
[Result "1-0"]
[Round "11"]
[TimeControl "180+1"]
[Date "2022.05.25"]
[WhiteClock "0:00:49"]
[BlackClock "0:01:33"]

1. d4 {[%clk 0:03:00]}  d6 {[%clk 0:02:52]} 2. c4 {[%clk 0:02:59]}  Nf6 {[%clk 0:02:52]} 3. Nc3 {[%clk 0:02:59]}  g6 {[%clk 0:02:51]} 4. e4 {[%clk 0:02:56]}  Bg7 {[%clk 0:02:50]} 5. Be2 {[%clk 0:02:56]}  e5 {[%clk 0:02:48]} 6. dxe5 {[%clk 0:02:53]}  dxe5 {[%clk 0:02:49]} 7. Qxd8+ {[%clk 0:02:52]}  Kxd8 {[%clk 0:02:49]} 8. Bg5 {[%clk 0:02:52]}  c6 {[%clk 0:02:49]} 9. f4 {[%clk 0:02:50]}  h6 {[%clk 0:02:39]} 10. Bh4 {[%clk 0:02:49]}  Nd7 {[%clk 0:02:36]} 11. Nf3 {[%clk 0:02:44]}  Re8 {[%clk 0:02:35]} 12. O-O-O {[%clk 0:02:42]}  Kc7 {[%clk 0:02:29]} 13. fxe5 {[%clk 0:01:46]}  Ng4 {[%clk 0:02:25]} 14. e6 {[%clk 0:01:45]}  fxe6 {[%clk 0:02:07]} 15. Bg3+ {[%clk 0:01:44]}  e5 {[%clk 0:02:04]} 16. Nh4 {[%clk 0:01:43]}  Ne3 {[%clk 0:02:01]} 17. Rd3 {[%clk 0:01:41]}  g5 {[%clk 0:01:52]} 18. Rxe3 {[%clk 0:01:36]}  gxh4 {[%clk 0:01:52]} 19. Bxh4 {[%clk 0:01:37]}  Nc5 {[%clk 0:01:51]} 20. Rg3 {[%clk 0:01:31]}  Bf8 {[%clk 0:01:49]} 21. Bh5 {[%clk 0:01:23]}  Re6 {[%clk 0:01:46]} 22. Rf1 {[%clk 0:01:22]}  Bd7 {[%clk 0:01:43]} 23. b4 {[%clk 0:01:16]}  Na6 {[%clk 0:01:41]} 24. Rg8 {[%clk 0:01:04]}  Bxb4 {[%clk 0:01:34]} 25. Rxa8 {[%clk 0:01:02]}  Bxc3 {[%clk 0:01:34]} 26. Rf7 {[%clk 0:00:56]}  Rd6 {[%clk 0:01:33]} 27. Bd8# {[%clk 0:00:49]} 1-0


[Site "https://www.chess.com"]

[Event "Titled Tuesday Blitz May 24 Early 2022"]
[White "Dobre, Claudiu-Cristian"]
[Black "Chuemsakul, Sarocha"]
[WhiteFideId "1211854"]
[BlackFideId "6203710"]
[WhiteElo "2207"]
[BlackElo "1703"]
[Result "0-1"]
[Round "11"]
[TimeControl "180+1"]
[Date "2022.05.25"]
[WhiteClock "0:00:01"]
[BlackClock "0:00:06"]

1. c4 {[%clk 0:03:00]}  Nf6 {[%clk 0:02:59]} 2. Nf3 {[%clk 0:02:59]}  g6 {[%clk 0:02:59]} 3. Nc3 {[%clk 0:02:57]}  Bg7 {[%clk 0:02:59]} 4. d4 {[%clk 0:02:58]}  d6 {[%clk 0:03:00]} 5. e4 {[%clk 0:02:58]}  O-O {[%clk 0:03:00]} 6. Be2 {[%clk 0:02:59]}  e5 {[%clk 0:03:00]} 7. O-O {[%clk 0:02:59]}  Nc6 {[%clk 0:03:01]} 8. d5 {[%clk 0:03:00]}  Ne7 {[%clk 0:03:01]} 9. Ne1 {[%clk 0:03:00]}  Nd7 {[%clk 0:03:01]} 10. f3 {[%clk 0:03:01]}  f5 {[%clk 0:03:01]} 11. g4 {[%clk 0:03:02]}  f4 {[%clk 0:02:45]} 12. h4 {[%clk 0:03:01]}  Kh8 {[%clk 0:02:40]} 13. Rf2 {[%clk 0:02:51]}  Ng8 {[%clk 0:02:40]} 14. Rh2 {[%clk 0:02:50]}  a5 {[%clk 0:02:31]} 15. Nd3 {[%clk 0:02:49]}  b6 {[%clk 0:02:31]} 16. Bd2 {[%clk 0:02:49]}  Nc5 {[%clk 0:02:31]} 17. Be1 {[%clk 0:02:49]}  Bd7 {[%clk 0:02:29]} 18. Bf2 {[%clk 0:02:48]}  Nf6 {[%clk 0:02:20]} 19. Ne1 {[%clk 0:02:41]}  Qc8 {[%clk 0:02:11]} 20. Rg2 {[%clk 0:02:39]}  Rg8 {[%clk 0:02:08]} 21. Kh2 {[%clk 0:02:35]}  Bf8 {[%clk 0:01:55]} 22. Rg1 {[%clk 0:02:34]}  Be7 {[%clk 0:01:54]} 23. b3 {[%clk 0:02:31]}  h6 {[%clk 0:01:47]} 24. Qc2 {[%clk 0:02:27]}  h5 {[%clk 0:01:22]} 25. g5 {[%clk 0:02:27]}  Ng4+ {[%clk 0:01:23]} 26. Kg2 {[%clk 0:02:17]}  Qd8 {[%clk 0:01:02]} 27. Kf1 {[%clk 0:02:08]}  Bxg5 {[%clk 0:00:50]} 28. hxg5 {[%clk 0:02:08]}  Qxg5 {[%clk 0:00:51]} 29. fxg4 {[%clk 0:02:07]}  hxg4 {[%clk 0:00:51]} 30. Rh1+ {[%clk 0:01:59]}  Kg7 {[%clk 0:00:51]} 31. Bh4 {[%clk 0:02:00]}  Qh5 {[%clk 0:00:42]} 32. Bf6+ {[%clk 0:02:00]}  Kxf6 {[%clk 0:00:43]} 33. Rxh5 {[%clk 0:02:00]}  gxh5 {[%clk 0:00:44]} 34. Nd3 {[%clk 0:01:26]}  h4 {[%clk 0:00:42]} 35. Nxc5 {[%clk 0:01:25]}  bxc5 {[%clk 0:00:42]} 36. Ke1 {[%clk 0:01:03]}  h3 {[%clk 0:00:41]} 37. Kd2 {[%clk 0:01:03]}  h2 {[%clk 0:00:38]} 38. Rh1 {[%clk 0:00:55]}  g3 {[%clk 0:00:38]} 39. Bf3 {[%clk 0:00:50]}  Bg4 {[%clk 0:00:35]} 40. Qd1 {[%clk 0:00:48]}  Bxf3 {[%clk 0:00:30]} 41. Qxf3 {[%clk 0:00:47]}  g2 {[%clk 0:00:29]} 42. Rxh2 {[%clk 0:00:17]}  g1=Q {[%clk 0:00:29]} 43. Qh3 {[%clk 0:00:11]}  Qg4 {[%clk 0:00:14]} 44. Qxg4 {[%clk 0:00:09]}  Rxg4 {[%clk 0:00:13]} 45. Rh7 {[%clk 0:00:09]}  Rg7 {[%clk 0:00:13]} 46. Rh6+ {[%clk 0:00:09]}  Kg5 {[%clk 0:00:13]} 47. Rh1 {[%clk 0:00:08]}  Rag8 {[%clk 0:00:12]} 48. Nb5 {[%clk 0:00:07]}  Kf6 {[%clk 0:00:11]} 49. Kc3 {[%clk 0:00:04]}  Rg3+ {[%clk 0:00:11]} 50. Kb2 {[%clk 0:00:04]}  Re3 {[%clk 0:00:11]} 51. Nxc7 {[%clk 0:00:04]}  Rg2+ {[%clk 0:00:11]} 52. Ka3 {[%clk 0:00:03]}  Ree2 {[%clk 0:00:11]} 53. Ka4 {[%clk 0:00:03]}  Rxa2+ {[%clk 0:00:11]} 54. Kb5 {[%clk 0:00:04]}  Rgb2 {[%clk 0:00:12]} 55. Kc6 {[%clk 0:00:04]}  Rxb3 {[%clk 0:00:12]} 56. Ne8+ {[%clk 0:00:04]}  Ke7 {[%clk 0:00:12]} 57. Nxd6 {[%clk 0:00:04]}  f3 {[%clk 0:00:12]} 58. Rh7+ {[%clk 0:00:03]}  Kf6 {[%clk 0:00:12]} 59. Rf7+ {[%clk 0:00:02]}  Kg6 {[%clk 0:00:13]} 60. Rf5 {[%clk 0:00:03]}  f2 {[%clk 0:00:12]} 61. Nf7 {[%clk 0:00:03]}  Rb1 {[%clk 0:00:07]} 62. Nxe5+ {[%clk 0:00:03]}  Kh6 {[%clk 0:00:08]} 63. Ng4+ {[%clk 0:00:03]}  Kg6 {[%clk 0:00:08]} 64. Nxf2 {[%clk 0:00:03]}  Rf1 {[%clk 0:00:05]} 65. Nd3 {[%clk 0:00:03]}  Rf4 {[%clk 0:00:05]} 66. Nxf4+ {[%clk 0:00:01]}  Kh6 {[%clk 0:00:06]} 0-1


[Site "https://www.chess.com"]